fUST/lending_fUST_20250723
["ID","MTS","AMOUNT","RATE_DAILY","PERIOD"]
[374338038,1753276249133,-500.0,0.00019452,2]
[374338040,1753276249142,-158.27645893,0.00019473,2]
[374338042,1753276249152,-500.0,0.00019473,2]
[374338044,1753276249161,-500.0,0.00019473,2]
[374338046,1753276249171,-792.20608088,0.00019521,2]
[374338048,1753276249179,-168.23383675,0.00019534,3]
[374338050,1753276249190,-2217.29484668,0.00019557,2]
[374338052,1753276249198,-150.0,0.00019599,2]
[374338054,1753276249207,-151.0,0.000196,2]
[374338056,1753276249216,-800.0,0.0001962,2]
[374338058,1753276249225,-1004.2039147,0.00019721,2]
[374338060,1753276249235,-1000.0,0.00019721,2]
[374338062,1753276249244,-1000.0,0.00019721,2]
[374338063,1753276249253,-500.0,0.00019721,2]
[374338065,1753276249263,-1000.0,0.00019721,2]
[374338068,1753276249273,-1000.0,0.00019721,2]
[374338070,1753276249283,-1000.0,0.00019721,2]
[374338071,1753276249293,-517.57490607,0.00019721,2]
[374338073,1753276249302,-1000.0,0.00019721,2]
[374338075,1753276249312,-195.18191197,0.00019721,2]
[374338077,1753276249321,-460.0,0.00019726,2]
[374338079,1753276249331,-460.0,0.00019726,2]
[374338081,1753276249341,-460.0,0.00019726,2]
[374338083,1753276249351,-460.0,0.00019726,2]
[374338085,1753276249362,-460.0,0.00019726,2]
[374338087,1753276249371,-460.0,0.00019726,2]
[374338089,1753276249381,-460.0,0.00019726,2]
[374338091,1753276249391,-460.0,0.00019726,2]
[374338093,1753276249401,-460.0,0.00019726,2]
[374338095,1753276249411,-6770.1,0.00019726,2]
[374338097,1753276249421,-460.0,0.00019726,2]
[374338099,1753276249431,-460.0,0.00019726,2]
[374338101,1753276249442,-178.59315011,0.00019726,2]
[374338103,1753276249453,-460.0,0.00019726,2]
[374338105,1753276249462,-460.0,0.00019726,2]
[374338107,1753276249472,-460.0,0.00019726,2]
[374338109,1753276249482,-460.0,0.00019726,2]
[374338111,1753276249491,-460.0,0.00019726,2]
[374338113,1753276249501,-460.0,0.00019726,2]
[374338114,1753276249510,-460.0,0.00019726,2]
[374338116,1753276249519,-460.0,0.00019726,2]
[374338118,1753276249529,-460.0,0.00019726,2]
[374338120,1753276249539,-460.0,0.00019726,2]
[374338122,1753276249548,-465.75907525,0.00019726,2]
[374338124,1753276249558,-460.0,0.00019726,2]
[374338126,1753276249568,-460.0,0.00019726,2]
[374338128,1753276249579,-460.0,0.00019726,2]
[374338130,1753276249590,-532.99036941,0.00019726,2]
[374338132,1753276249600,-718.85,0.00019726,2]
[374338134,1753276249610,-157.42474251,0.00019726,2]
[374338136,1753276249619,-460.0,0.00019726,2]
[374338138,1753276249628,-460.0,0.00019726,2]
[374338140,1753276249637,-460.0,0.00019726,2]
[374338142,1753276249647,-1835.53,0.00019726,2]
[374338144,1753276249658,-1759.05,0.00019726,2]
[374338146,1753276249667,-1759.05,0.00019726,2]
[374338148,1753276249677,-460.0,0.00019726,2]
[374338149,1753276249686,-460.0,0.00019726,2]
[374338151,1753276249697,-460.0,0.00019726,2]
[374338154,1753276249707,-460.0,0.00019726,2]
[374338155,1753276249716,-268.6003848,0.00019726,2]
[374338157,1753276249726,-462.60221415,0.00019726,2]
[374338159,1753276249735,-460.0,0.00019726,2]
[374338161,1753276249745,-460.0,0.00019726,2]
[374338163,1753276249755,-460.0,0.00019726,2]
[374338165,1753276249764,-460.0,0.00019726,2]
[374338167,1753276249774,-460.0,0.00019726,2]
[374338169,1753276249784,-515.91,0.00019726,2]
[374338171,1753276249795,-460.0,0.00019726,2]
[374338173,1753276249804,-460.0,0.00019726,2]
[374338175,1753276249813,-460.0,0.00019726,2]
[374338177,1753276249823,-460.0,0.00019726,2]
[374338179,1753276249832,-460.0,0.00019726,2]
[374338181,1753276249844,-460.0,0.00019726,2]
[374338183,1753276249853,-460.0,0.00019726,2]
[374338185,1753276249863,-460.0,0.00019726,2]
[374338187,1753276249872,-460.0,0.00019726,2]
[374338189,1753276249882,-460.0,0.00019726,2]
[374338191,1753276249891,-249.56249009,0.00019726,2]
[374338193,1753276249900,-460.0,0.00019726,2]
[374338195,1753276249911,-460.0,0.00019726,2]
[374338197,1753276249921,-460.0,0.00019726,2]
[374338199,1753276249930,-460.0,0.00019726,2]
[374338200,1753276249942,-460.0,0.00019726,2]
[374338202,1753276249951,-460.0,0.00019726,2]
[374338204,1753276249962,-460.0,0.00019726,2]
[374338206,1753276249972,-460.0,0.00019726,2]
[374338208,1753276249990,-764.96,0.00019726,2]
[374338210,1753276250000,-710.55,0.00019726,2]
[374338212,1753276250009,-460.0,0.00019726,2]
[374338214,1753276250018,-460.0,0.00019726,2]
[374338216,1753276250027,-460.0,0.00019726,2]
[374338218,1753276250037,-460.0,0.00019726,2]
[374338220,1753276250047,-460.0,0.00019726,2]
[374338222,1753276250056,-460.0,0.00019726,2]
[374338224,1753276250065,-460.0,0.00019726,2]
[374338226,1753276250075,-460.0,0.00019726,2]
[374338228,1753276250085,-460.0,0.00019726,2]
[374338230,1753276250095,-460.0,0.00019726,2]
[374338232,1753276250104,-571.91,0.00019726,2]
[374338234,1753276250114,-460.0,0.00019726,2]
[374338235,1753276250124,-460.0,0.00019726,2]
[374338237,1753276250135,-460.0,0.00019726,2]
[374338239,1753276250144,-783.95,0.00019726,2]
[374338241,1753276250154,-460.0,0.00019726,2]
[374338243,1753276250163,-460.0,0.00019726,2]
[374338245,1753276250173,-460.0,0.00019726,2]
[374338247,1753276250182,-460.0,0.00019726,2]
[374338249,1753276250192,-460.0,0.00019726,2]
[374338251,1753276250202,-391.75247045,0.00019726,2]
[374338253,1753276250211,-460.0,0.00019726,2]
[374338255,1753276250220,-703.02,0.00019726,2]
[374338257,1753276250229,-460.0,0.00019726,2]
[374338259,1753276250239,-460.0,0.00019726,2]
[374338261,1753276250252,-460.0,0.00019726,2]
[374338263,1753276250261,-460.0,0.00019726,2]
[374338265,1753276250270,-460.0,0.00019726,2]
[374338267,1753276250280,-333.36683095,0.00019726,2]
[374338269,1753276250288,-460.0,0.00019726,2]
[374338271,1753276250298,-460.0,0.00019726,2]
[374338273,1753276250307,-460.0,0.00019726,2]
[374338275,1753276250317,-460.0,0.00019726,2]
[374338277,1753276250326,-460.0,0.00019726,2]
[374338279,1753276250337,-205.23222555,0.00019726,2]
[374338281,1753276250346,-460.0,0.00019726,2]
[374338283,1753276250356,-460.0,0.00019726,2]
[374338285,1753276250366,-460.0,0.00019726,2]
[374338287,1753276250375,-460.0,0.00019726,2]
[374338289,1753276250384,-460.0,0.00019726,2]
[374338291,1753276250394,-460.0,0.00019726,2]
[374338293,1753276250403,-460.0,0.00019726,2]
[374338295,1753276250413,-460.0,0.00019726,2]
[374338297,1753276250423,-460.0,0.00019726,2]
[374338299,1753276250432,-465.7251263,0.00019726,2]
[374338300,1753276250441,-4239.08,0.00019726,2]
[374338302,1753276250454,-518.96,0.00019726,2]
[374338304,1753276250463,-460.0,0.00019726,2]
[374338306,1753276250472,-460.0,0.00019726,2]
[374338308,1753276250482,-460.0,0.00019726,2]
[374338310,1753276250491,-460.0,0.00019726,2]
[374338312,1753276250501,-460.0,0.00019726,2]
[374338314,1753276250511,-460.0,0.00019726,2]
[374338316,1753276250523,-307.74959897,0.00019726,2]
[374338318,1753276250535,-1446.04,0.00019726,2]
[374338320,1753276250544,-460.0,0.00019726,2]
[374338322,1753276250552,-460.0,0.00019726,2]
[374338324,1753276250561,-460.0,0.00019726,2]
[374338326,1753276250571,-460.0,0.00019726,2]
[374338328,1753276250581,-460.0,0.00019726,2]
[374338330,1753276250590,-460.0,0.00019726,2]
[374338332,1753276250600,-460.0,0.00019726,2]
[374338333,1753276250610,-460.0,0.00019726,2]
[374338335,1753276250619,-460.0,0.00019726,2]
[374338336,1753276250629,-460.0,0.00019726,2]
[374338338,1753276250639,-460.0,0.00019726,2]
[374338349,1753276250747,-519.04,0.00019726,2]
[374338351,1753276250758,-460.0,0.00019726,2]
[374338353,1753276250775,-776.72,0.00019726,2]
[374338355,1753276250785,-460.0,0.00019726,2]
[374338357,1753276250795,-460.0,0.00019726,2]
[374338359,1753276250804,-660.45,0.00019726,2]
[374338361,1753276250813,-325.2509377,0.00019726,2]
[374338363,1753276250822,-460.0,0.00019726,2]
[374338365,1753276250832,-460.0,0.00019726,2]
[374338367,1753276250841,-460.0,0.00019726,2]
[374338369,1753276250851,-460.0,0.00019726,2]
[374338371,1753276250861,-460.0,0.00019726,2]
[374338373,1753276250870,-460.0,0.00019726,2]
[374338375,1753276250879,-460.0,0.00019726,2]
[374338377,1753276250889,-739.8,0.00019726,2]
[374338379,1753276250899,-460.0,0.00019726,2]
[374338381,1753276250913,-460.0,0.00019726,2]
[374338383,1753276250922,-1210.15,0.00019726,2]
[374338385,1753276250931,-1075.16,0.00019726,2]
[374338387,1753276250942,-179.07314685,0.00019726,2]
[374338389,1753276250952,-460.0,0.00019726,2]
[374338391,1753276250961,-460.0,0.00019726,2]
[374338392,1753276250971,-460.0,0.00019726,2]
[374338394,1753276250981,-460.0,0.00019726,2]
[374338396,1753276250991,-460.0,0.00019726,2]
[374338398,1753276251000,-460.0,0.00019726,2]
[374338400,1753276251009,-460.0,0.00019726,2]
[374338402,1753276251018,-460.0,0.00019726,2]
[374338404,1753276251027,-462.27660256,0.00019726,2]
[374338406,1753276251037,-462.01424896,0.00019726,2]
[374338408,1753276251046,-460.0,0.00019726,2]
[374338410,1753276251055,-460.0,0.00019726,2]
[374338412,1753276251065,-733.72,0.00019726,2]
[374338414,1753276251075,-460.0,0.00019726,2]
[374338416,1753276251084,-460.0,0.00019726,2]
[374338418,1753276251092,-4945.02,0.00019726,2]
[374338420,1753276251101,-460.0,0.00019726,2]
[374338422,1753276251110,-460.0,0.00019726,2]
[374338424,1753276251119,-460.0,0.00019726,2]
[374338425,1753276251129,-460.0,0.00019726,2]
[374338427,1753276251139,-336.67,0.00019726,2]
[374338429,1753276251148,-460.0,0.00019726,2]
[374338431,1753276251157,-460.0,0.00019726,2]
[374338433,1753276251167,-460.0,0.00019726,2]
[374338435,1753276251177,-460.0,0.00019726,2]
[374338437,1753276251186,-849.9,0.00019726,2]
[374338439,1753276251198,-460.0,0.00019726,2]
[374338441,1753276251208,-460.0,0.00019726,2]
[374338443,1753276251217,-3080.49,0.00019726,2]
[374338445,1753276251226,-460.0,0.00019726,2]
[374338447,1753276251236,-478.30509695,0.00019726,2]
[374338448,1753276251245,-460.0,0.00019726,2]
[374338449,1753276251255,-460.0,0.00019726,2]
[374338450,1753276251264,-494.89,0.00019726,2]
[374338451,1753276251273,-460.0,0.00019726,2]
[374338452,1753276251283,-743.28,0.00019726,2]
[374338453,1753276251293,-460.0,0.00019726,2]
[374338454,1753276251302,-3893.82,0.00019726,2]
[374338455,1753276251311,-460.0,0.00019726,2]
[374338456,1753276251321,-633.21,0.00019726,2]
[374338458,1753276251330,-718.66,0.00019726,2]
[374338460,1753276251339,-509.02346839,0.00019726,2]
[374338462,1753276251349,-460.0,0.00019726,2]
[374338464,1753276251358,-460.0,0.00019726,2]
[374338466,1753276251367,-460.0,0.00019726,2]
[374338468,1753276251377,-2569.44,0.00019726,2]
[374338470,1753276251387,-623.14,0.00019726,2]
[374338472,1753276251396,-460.0,0.00019726,2]
[374338474,1753276251405,-460.0,0.00019726,2]
[374338476,1753276251414,-702.02,0.00019726,2]
[374338478,1753276251424,-460.0,0.00019726,2]
[374338479,1753276251433,-460.0,0.00019726,2]
[374338481,1753276251444,-460.0,0.00019726,2]
[374338484,1753276251453,-686.41,0.00019726,2]
[374338485,1753276251463,-460.0,0.00019726,2]
[374338488,1753276251473,-460.0,0.00019726,2]
[374338490,1753276251482,-460.0,0.00019726,2]
[374338491,1753276251491,-1323.49,0.00019726,2]
[374338494,1753276251502,-460.0,0.00019726,2]
[374338496,1753276251512,-460.0,0.00019726,2]
[374338498,1753276251522,-540.06,0.00019726,2]
[374338500,1753276251531,-460.0,0.00019726,2]
[374338502,1753276251547,-460.0,0.00019726,2]
[374338504,1753276251557,-460.0,0.00019726,2]
[374338505,1753276251566,-460.0,0.00019726,2]
[374338507,1753276251576,-14539.89,0.00019726,2]
[374338510,1753276251587,-460.0,0.00019726,2]
[374338511,1753276251597,-460.0,0.00019726,2]
[374338513,1753276251606,-460.0,0.00019726,2]
[374338515,1753276251615,-460.0,0.00019726,2]
[374338517,1753276251627,-460.0,0.00019726,2]
[374338520,1753276251637,-460.0,0.00019726,2]
[374338522,1753276251646,-460.0,0.00019726,2]
[374338524,1753276251656,-500.0,0.00019726,2]
[374338525,1753276251665,-179.80221756,0.00019808,2]
[374338528,1753276251675,-3432.7107726,0.00019855,2]
[374338530,1753276251685,-3000.0,0.000199,2]
[374338532,1753276251694,-170.6692493,0.000199,2]
[374338533,1753276251702,-577269.22068846,0.000199,2]
[374338535,1753276251711,-160.0,0.00019904,2]
[374338537,1753276251721,-3000.0,0.0001991,2]
[374338539,1753276251730,-3000.0,0.0001992,2]
[374338541,1753276251740,-3000.0,0.0001993,2]
[374338543,1753276251750,-3000.0,0.0001994,2]
[374338545,1753276251759,-3000.0,0.0001995,2]
[374338547,1753276251769,-3000.0,0.0001996,2]
[374338549,1753276251778,-3000.0,0.0001997,2]
[374338551,1753276251788,-500.0,0.00019973,2]
[374338553,1753276251798,-500.0,0.00019973,2]
[374338555,1753276251807,-500.94168668,0.00019973,2]
[374338557,1753276251816,-500.0,0.00019973,2]
[374338559,1753276251825,-500.0,0.00019973,2]
[374338561,1753276251835,-500.0,0.00019973,2]
[374338563,1753276251844,-500.0,0.00019973,2]
[374338565,1753276251854,-386.60069791,0.00019973,2]
[374338567,1753276251863,-641.49978633,0.00019973,2]
[374338569,1753276251872,-500.0,0.00019973,2]
[374338571,1753276251882,-552.78730248,0.00019973,2]
[374338573,1753276251891,-500.0,0.00019973,2]
[374338575,1753276251901,-500.0,0.00019973,2]
[374338577,1753276251914,-500.0,0.00019973,2]
[374338579,1753276251923,-500.0,0.00019973,2]
[374338581,1753276251932,-500.0,0.00019973,2]
[374338583,1753276251946,-500.0,0.00019973,2]
[374338585,1753276251956,-500.0,0.00019973,2]
[374338587,1753276251964,-500.0,0.00019973,2]
[374338589,1753276251973,-156.64231511,0.00019973,2]
[374338591,1753276251983,-500.0,0.00019973,2]
[374338593,1753276251994,-500.0,0.00019973,2]
[374338595,1753276252003,-500.0,0.00019973,2]
[374338597,1753276252012,-500.0,0.00019973,2]
[374338599,1753276252022,-500.0,0.00019973,2]
[374338601,1753276252031,-500.0,0.00019973,2]
[374338603,1753276252040,-500.0,0.00019973,2]
[374338605,1753276252050,-500.0,0.00019973,2]
[374338607,1753276252059,-644.41561795,0.00019973,2]
[374338609,1753276252069,-500.0,0.00019973,2]
[374338611,1753276252078,-500.0,0.00019973,2]
[374338613,1753276252088,-500.0,0.00019973,2]
[374338615,1753276252097,-500.0,0.00019973,2]
[374338617,1753276252107,-578.18285853,0.00019973,2]
[374338619,1753276252117,-500.0,0.00019973,2]
[374338622,1753276252127,-500.8524135,0.00019973,2]
[374338623,1753276252136,-500.0,0.00019973,2]
[374338625,1753276252145,-500.0,0.00019973,2]
[374338628,1753276252155,-500.0,0.00019973,2]
[374338630,1753276252164,-3000.0,0.0001998,2]
[374338632,1753276252174,-1021.27119451,0.0001998,2]
[374338634,1753276252183,-26579.03478645,0.00019988,2]
[374338635,1753276252199,-3000.0,0.0001999,2]
[374338637,1753276252209,-460.0,0.0002,2]
[374338639,1753276252218,-460.0,0.0002,2]
[374338641,1753276252227,-460.0,0.0002,2]
[374338643,1753276252236,-460.0,0.0002,2]
[374338645,1753276252244,-3000.0,0.0002,2]
[374338647,1753276252254,-460.0,0.0002,2]
[374338649,1753276252263,-460.0,0.0002,2]
[374338651,1753276252272,-6770.1,0.0002,2]
[374338653,1753276252282,-460.0,0.0002,2]
[374338655,1753276252291,-460.0,0.0002,2]
[374338657,1753276252300,-460.0,0.0002,2]
[374338659,1753276252309,-460.0,0.0002,2]
[374338661,1753276252318,-460.0,0.0002,2]
[374338663,1753276252328,-460.0,0.0002,2]
[374338665,1753276252337,-460.0,0.0002,2]
[374338667,1753276252346,-460.0,0.0002,2]
[374338669,1753276252355,-460.0,0.0002,2]
[374338671,1753276252364,-460.0,0.0002,2]
[374338673,1753276252373,-463.89688741,0.0002,2]
[374338676,1753276252392,-460.0,0.0002,2]
[374338678,1753276252403,-460.0,0.0002,2]
[374338680,1753276252413,-718.85,0.0002,2]
[374338682,1753276252423,-460.0,0.0002,2]
[374338684,1753276252432,-460.0,0.0002,2]
[374338686,1753276252441,-460.0,0.0002,2]
[374338688,1753276252454,-460.0,0.0002,2]
[374338690,1753276252463,-1759.05,0.0002,2]
[374338692,1753276252473,-1759.05,0.0002,2]
[374338694,1753276252483,-460.0,0.0002,2]
[374338696,1753276252492,-460.0,0.0002,2]
[374338698,1753276252502,-539.79223249,0.0002,2]
[374338700,1753276252512,-460.0,0.0002,2]
[374338702,1753276252521,-460.0,0.0002,2]
[374338704,1753276252530,-460.0,0.0002,2]
[374338706,1753276252540,-460.0,0.0002,2]
[374338708,1753276252548,-515.91,0.0002,2]
[374338710,1753276252557,-460.0,0.0002,2]
[374338712,1753276252566,-460.0,0.0002,2]
[374338714,1753276252575,-460.0,0.0002,2]
[374338716,1753276252586,-460.0,0.0002,2]
[374338718,1753276252596,-460.0,0.0002,2]
[374338720,1753276252605,-460.0,0.0002,2]
[374338722,1753276252615,-460.0,0.0002,2]
[374338724,1753276252625,-460.0,0.0002,2]
[374338726,1753276252635,-460.0,0.0002,2]
[374338728,1753276252644,-460.0,0.0002,2]
[374338730,1753276252654,-460.0,0.0002,2]
[374338732,1753276252663,-460.0,0.0002,2]
[374338734,1753276252673,-764.96,0.0002,2]
[374338736,1753276252682,-710.55,0.0002,2]
[374338738,1753276252692,-460.0,0.0002,2]
[374338740,1753276252706,-460.0,0.0002,2]
[374338743,1753276252716,-460.0,0.0002,2]
[374338745,1753276252726,-460.0,0.0002,2]
[374338747,1753276252735,-460.0,0.0002,2]
[374338749,1753276252745,-460.0,0.0002,2]
[374338751,1753276252754,-460.0,0.0002,2]
[374338753,1753276252764,-460.0,0.0002,2]
[374338755,1753276252773,-571.91,0.0002,2]
[374338757,1753276252782,-460.0,0.0002,2]
[374338759,1753276252792,-460.0,0.0002,2]
[374338761,1753276252801,-460.0,0.0002,2]
[374338763,1753276252810,-783.95,0.0002,2]
[374338778,1753276252953,-460.0,0.0002,2]
[374338781,1753276252967,-460.0,0.0002,2]
[374338783,1753276252977,-460.0,0.0002,2]
[374338784,1753276252988,-460.0,0.0002,2]
[374338787,1753276252999,-460.0,0.0002,2]
[374338788,1753276253008,-703.02,0.0002,2]
[374338791,1753276253018,-460.0,0.0002,2]
[374338792,1753276253028,-460.0,0.0002,2]
[374338794,1753276253038,-460.0,0.0002,2]
[374338796,1753276253047,-460.0,0.0002,2]
[374338799,1753276253057,-460.0,0.0002,2]
[374338800,1753276253066,-460.0,0.0002,2]
[374338802,1753276253076,-460.0,0.0002,2]
[374338804,1753276253085,-463.80601612,0.0002,2]
[374338806,1753276253095,-460.0,0.0002,2]
[374338808,1753276253104,-460.0,0.0002,2]
[374338811,1753276253114,-460.0,0.0002,2]
[374338812,1753276253123,-460.0,0.0002,2]
[374338814,1753276253134,-460.0,0.0002,2]
[374338817,1753276253143,-460.0,0.0002,2]
[374338818,1753276253153,-460.0,0.0002,2]
[374338820,1753276253164,-460.0,0.0002,2]
[374338822,1753276253174,-460.0,0.0002,2]
[374338824,1753276253184,-4239.08,0.0002,2]
[374338826,1753276253195,-518.96,0.0002,2]
[374338828,1753276253205,-460.0,0.0002,2]
[374338830,1753276253214,-460.0,0.0002,2]
[374338832,1753276253223,-460.0,0.0002,2]
[374338834,1753276253233,-460.0,0.0002,2]
[374338836,1753276253242,-460.0,0.0002,2]
[374338838,1753276253251,-460.0,0.0002,2]
[374338840,1753276253262,-1446.04,0.0002,2]
[374338843,1753276253273,-460.0,0.0002,2]
[374338844,1753276253283,-460.0,0.0002,2]
[374338846,1753276253293,-460.0,0.0002,2]
[374338848,1753276253302,-460.0,0.0002,2]
[374338851,1753276253312,-460.0,0.0002,2]
[374338852,1753276253321,-460.0,0.0002,2]
[374338855,1753276253331,-460.0,0.0002,2]
[374338857,1753276253340,-460.0,0.0002,2]
[374338859,1753276253350,-519.04,0.0002,2]
[374338861,1753276253359,-776.72,0.0002,2]
[374338862,1753276253368,-460.0,0.0002,2]
[374338864,1753276253377,-460.0,0.0002,2]
[374338867,1753276253387,-660.45,0.0002,2]
[374338869,1753276253397,-460.0,0.0002,2]
[374338871,1753276253407,-354.37143424,0.0002,2]
[374338873,1753276253418,-460.0,0.0002,2]
[374338875,1753276253428,-460.0,0.0002,2]
[374338877,1753276253438,-739.8,0.0002,2]
[374338879,1753276253447,-460.0,0.0002,2]
[374338881,1753276253457,-460.0,0.0002,2]
[374338883,1753276253467,-1210.15,0.0002,2]
[374338885,1753276253476,-1075.16,0.0002,2]
[374338887,1753276253486,-460.0,0.0002,2]
[374338889,1753276253496,-460.0,0.0002,2]
[374338891,1753276253506,-460.0,0.0002,2]
[374338893,1753276253515,-460.0,0.0002,2]
[374338895,1753276253526,-460.0,0.0002,2]
[374338897,1753276253535,-460.0,0.0002,2]
[374338899,1753276253545,-733.72,0.0002,2]
[374338900,1753276253554,-460.0,0.0002,2]
[374338901,1753276253563,-4945.02,0.0002,2]
[374338902,1753276253573,-460.0,0.0002,2]
[374338903,1753276253583,-460.0,0.0002,2]
[374338904,1753276253592,-460.0,0.0002,2]
[374338905,1753276253602,-460.0,0.0002,2]
[374338906,1753276253614,-460.0,0.0002,2]
[374338907,1753276253623,-460.0,0.0002,2]
[374338908,1753276253633,-849.9,0.0002,2]
[374338909,1753276253643,-460.0,0.0002,2]
[374338910,1753276253653,-460.0,0.0002,2]
[374338911,1753276253662,-3080.49,0.0002,2]
[374338912,1753276253671,-460.0,0.0002,2]
[374338913,1753276253681,-460.0,0.0002,2]
[374338914,1753276253691,-494.89,0.0002,2]
[374338915,1753276253703,-460.0,0.0002,2]
[374338916,1753276253712,-743.28,0.0002,2]
[374338917,1753276253721,-460.0,0.0002,2]
[374338918,1753276253731,-3893.82,0.0002,2]
[374338919,1753276253741,-633.21,0.0002,2]
[374338920,1753276253757,-718.66,0.0002,2]
[374338922,1753276253767,-460.0,0.0002,2]
[374338924,1753276253776,-581.7554578,0.0002,2]
[374338926,1753276253786,-460.0,0.0002,2]
[374338928,1753276253795,-2569.44,0.0002,2]
[374338930,1753276253805,-623.14,0.0002,2]
[374338932,1753276253815,-460.0,0.0002,2]
[374338934,1753276253825,-460.0,0.0002,2]
[374338936,1753276253835,-702.02,0.0002,2]
[374338938,1753276253846,-460.0,0.0002,2]
[374338940,1753276253857,-460.0,0.0002,2]
[374338942,1753276253867,-460.0,0.0002,2]
[374338944,1753276253877,-686.41,0.0002,2]
[374338946,1753276253887,-460.0,0.0002,2]
[374338948,1753276253896,-460.0,0.0002,2]
[374338950,1753276253907,-1323.49,0.0002,2]
[374338952,1753276253918,-460.0,0.0002,2]
[374338954,1753276253927,-460.0,0.0002,2]
[374338956,1753276253939,-540.06,0.0002,2]
[374338959,1753276253952,-460.0,0.0002,2]
[374338960,1753276253962,-460.0,0.0002,2]
[374338963,1753276253971,-460.0,0.0002,2]
[374338965,1753276253982,-14539.89,0.0002,2]
[374338967,1753276253992,-460.0,0.0002,2]
[374338969,1753276254002,-460.0,0.0002,2]
[374338971,1753276254012,-460.0,0.0002,2]
[374338973,1753276254022,-460.0,0.0002,2]
[374338975,1753276254031,-460.0,0.0002,2]
[374338977,1753276254041,-460.0,0.0002,2]
[374338979,1753276254051,-3432.7107726,0.00020005,2]
[374338981,1753276254059,-3000.0,0.0002001,2]
[374338983,1753276254069,-4807.236808,0.0002002,2]
[374338985,1753276254079,-1000.0,0.00020021,2]
[374338987,1753276254088,-2217.29484668,0.00020037,2]
[374338989,1753276254098,-151.0,0.000201,4]
[374338991,1753276254108,-151.0,0.000201,3]
[374338993,1753276254117,-500.0,0.00020176,2]
[374338995,1753276254127,-158.27900585,0.00020176,2]
[374338997,1753276254135,-464.799699,0.00020187,2]
[374338999,1753276254144,-1500.0,0.00020268,2]
[374339001,1753276254154,-1500.0,0.00020268,2]
[374339003,1753276254163,-1500.0,0.00020268,2]
[374339005,1753276254171,-1500.0,0.00020268,2]
[374339007,1753276254179,-1500.0,0.00020268,2]
[374339009,1753276254188,-1500.0,0.00020268,2]
[374339011,1753276254201,-460.0,0.00020273,2]
[374339013,1753276254211,-460.0,0.00020273,2]
[374339015,1753276254221,-460.0,0.00020273,2]
[374339017,1753276254230,-6770.1,0.00020273,2]
[374339019,1753276254239,-460.0,0.00020273,2]
[374339021,1753276254249,-460.0,0.00020273,2]